[Event "Titled Tuesday Blitz May 23 Early 2023"]
[White "Baches Garcia, Guillermo"]
[Black "Steinberg, Nitzan"]
[WhiteFideId "2209764"]
[BlackFideId "2801795"]
[WhiteElo "2496"]
[BlackElo "2486"]
[Result "1-0"]
[Round "01"]
[TimeControl "180+2"]
[Date "2023.05.23"]
[WhiteClock "0:00:44"]
[BlackClock "0:01:10"]

1. e4 {[%clk 0:03:00]}  c5 {[%clk 0:03:00]} 2. Nf3 {[%clk 0:02:59]}  e6 {[%clk 0:03:00]} 3. d4 {[%clk 0:02:59]}  cxd4 {[%clk 0:03:01]} 4. Nxd4 {[%clk 0:02:59]}  Nc6 {[%clk 0:03:01]} 5. Nc3 {[%clk 0:02:59]}  Qc7 {[%clk 0:03:01]} 6. Be3 {[%clk 0:03:00]}  a6 {[%clk 0:03:02]} 7. g4 {[%clk 0:03:00]}  b5 {[%clk 0:03:00]} 8. Nxc6 {[%clk 0:03:00]}  dxc6 {[%clk 0:02:58]} 9. Qf3 {[%clk 0:02:57]}  b4 {[%clk 0:02:49]} 10. Na4 {[%clk 0:02:40]}  c5 {[%clk 0:02:47]} 11. O-O-O {[%clk 0:02:33]}  Bd7 {[%clk 0:02:37]} 12. b3 {[%clk 0:02:30]}  Bxa4 {[%clk 0:02:19]} 13. bxa4 {[%clk 0:02:29]}  Ne7 {[%clk 0:02:20]} 14. e5 {[%clk 0:02:00]}  Nd5 {[%clk 0:02:16]} 15. Rxd5 {[%clk 0:02:00]}  exd5 {[%clk 0:02:14]} 16. Qxd5 {[%clk 0:01:57]}  Rd8 {[%clk 0:02:14]} 17. Qe4 {[%clk 0:01:54]}  Be7 {[%clk 0:02:09]} 18. Bd3 {[%clk 0:01:45]}  Qd7 {[%clk 0:02:02]} 19. Rd1 {[%clk 0:01:25]}  Qxa4 {[%clk 0:01:36]} 20. e6 {[%clk 0:01:19]}  Qxa2 {[%clk 0:01:33]} 21. Bb5+ {[%clk 0:00:54]}  Kf8 {[%clk 0:01:13]} 22. Rxd8+ {[%clk 0:00:44]}  Bxd8 {[%clk 0:01:10]} 23. e7+ {[%clk 0:00:44]} 1-0


[Site "https://www.chess.com"]

[Event "Titled Tuesday Blitz May 23 Early 2023"]
[White "Rengifo Blancas, Renzo Jhonathan"]
[Black "Zakhartsov, Vladimir"]
[WhiteFideId "3807185"]
[BlackFideId "4145097"]
[WhiteElo "2085"]
[BlackElo "2495"]
[Result "0-1"]
[Round "01"]
[TimeControl "180+2"]
[Date "2023.05.23"]
[WhiteClock "0:00:11"]
[BlackClock "0:00:16"]

1. e4 {[%clk 0:03:00]}  g6 {[%clk 0:02:59]} 2. d4 {[%clk 0:03:00]}  Bg7 {[%clk 0:02:59]} 3. Nc3 {[%clk 0:03:01]}  a6 {[%clk 0:02:59]} 4. f4 {[%clk 0:03:00]}  b5 {[%clk 0:02:59]} 5. Nf3 {[%clk 0:02:59]}  Bb7 {[%clk 0:02:59]} 6. Bd3 {[%clk 0:02:59]}  d6 {[%clk 0:02:59]} 7. Qe2 {[%clk 0:02:59]}  c5 {[%clk 0:02:58]} 8. dxc5 {[%clk 0:02:55]}  dxc5 {[%clk 0:02:58]} 9. e5 {[%clk 0:02:55]}  Nh6 {[%clk 0:02:56]} 10. Be3 {[%clk 0:02:49]}  Qc7 {[%clk 0:02:47]} 11. Be4 {[%clk 0:02:44]}  Nd7 {[%clk 0:02:38]} 12. Nd5 {[%clk 0:02:20]}  Qc8 {[%clk 0:02:34]} 13. O-O-O {[%clk 0:02:05]}  e6 {[%clk 0:02:27]} 14. Nc3 {[%clk 0:02:04]}  b4 {[%clk 0:02:25]} 15. Bxb7 {[%clk 0:01:58]}  Qxb7 {[%clk 0:02:26]} 16. Na4 {[%clk 0:01:48]}  O-O {[%clk 0:02:07]} 17. Nxc5 {[%clk 0:01:45]}  Nxc5 {[%clk 0:02:07]} 18. Bxc5 {[%clk 0:01:46]}  Rfc8 {[%clk 0:02:07]} 19. Bd6 {[%clk 0:01:44]}  b3 {[%clk 0:01:58]} 20. axb3 {[%clk 0:01:41]}  Qxb3 {[%clk 0:01:58]} 21. Qd3 {[%clk 0:01:41]}  Qa2 {[%clk 0:01:45]} 22. Qa3 {[%clk 0:01:41]}  Qc4 {[%clk 0:01:44]} 23. Nd4 {[%clk 0:01:26]}  Nf5 {[%clk 0:01:44]} 24. b3 {[%clk 0:01:16]}  Qc3 {[%clk 0:01:35]} 25. Qb2 {[%clk 0:01:16]}  Qe3+ {[%clk 0:01:23]} 26. Kb1 {[%clk 0:01:15]}  Nxd6 {[%clk 0:01:09]} 27. exd6 {[%clk 0:01:15]}  Qxf4 {[%clk 0:01:09]} 28. Rhf1 {[%clk 0:01:11]}  Qxd6 {[%clk 0:01:07]} 29. Nf5 {[%clk 0:00:47]}  Qxd1+ {[%clk 0:01:04]} 30. Rxd1 {[%clk 0:00:47]}  Bxb2 {[%clk 0:01:04]} 31. Ne7+ {[%clk 0:00:48]}  Kf8 {[%clk 0:00:55]} 32. Nxc8 {[%clk 0:00:49]}  Rxc8 {[%clk 0:00:55]} 33. Kxb2 {[%clk 0:00:49]}  Ke7 {[%clk 0:00:55]} 34. c4 {[%clk 0:00:48]}  e5 {[%clk 0:00:55]} 35. Kc3 {[%clk 0:00:49]}  f5 {[%clk 0:00:52]} 36. Kb4 {[%clk 0:00:49]}  Rb8+ {[%clk 0:00:47]} 37. Ka4 {[%clk 0:00:44]}  Rd8 {[%clk 0:00:45]} 38. Re1 {[%clk 0:00:42]}  e4 {[%clk 0:00:45]} 39. Ka5 {[%clk 0:00:42]}  Rb8 {[%clk 0:00:37]} 40. b4 {[%clk 0:00:42]}  Kd6 {[%clk 0:00:35]} 41. Rb1 {[%clk 0:00:37]}  Ra8 {[%clk 0:00:30]} 42. Kb6 {[%clk 0:00:38]}  f4 {[%clk 0:00:30]} 43. c5+ {[%clk 0:00:36]}  Kd5 {[%clk 0:00:29]} 44. Kb7 {[%clk 0:00:34]}  Re8 {[%clk 0:00:27]} 45. c6 {[%clk 0:00:33]}  e3 {[%clk 0:00:25]} 46. c7 {[%clk 0:00:32]}  g5 {[%clk 0:00:24]} 47. Rd1+ {[%clk 0:00:32]}  Ke4 {[%clk 0:00:22]} 48. Rd8 {[%clk 0:00:32]}  Re7 {[%clk 0:00:23]} 49. Kb8 {[%clk 0:00:22]}  Rxc7 {[%clk 0:00:23]} 50. Kxc7 {[%clk 0:00:23]}  g4 {[%clk 0:00:22]} 51. Re8+ {[%clk 0:00:23]}  Kd3 {[%clk 0:00:22]} 52. Kb6 {[%clk 0:00:18]}  f3 {[%clk 0:00:22]} 53. gxf3 {[%clk 0:00:18]}  gxf3 {[%clk 0:00:23]} 54. Kxa6 {[%clk 0:00:19]}  f2 {[%clk 0:00:24]} 55. Rd8+ {[%clk 0:00:17]}  Ke2 {[%clk 0:00:23]} 56. b5 {[%clk 0:00:18]}  f1=Q {[%clk 0:00:23]} 57. b6 {[%clk 0:00:19]}  Qa1+ {[%clk 0:00:22]} 58. Kb7 {[%clk 0:00:19]}  Kf2 {[%clk 0:00:18]} 59. Rf8+ {[%clk 0:00:18]}  Kg2 {[%clk 0:00:18]} 60. Rg8+ {[%clk 0:00:18]}  Kxh2 {[%clk 0:00:18]} 61. Kc8 {[%clk 0:00:17]}  e2 {[%clk 0:00:17]} 62. b7 {[%clk 0:00:17]}  Qc3+ {[%clk 0:00:17]} 63. Kd7 {[%clk 0:00:17]}  Qd4+ {[%clk 0:00:16]} 64. Kc6 {[%clk 0:00:17]}  Qc4+ {[%clk 0:00:16]} 65. Kd7 {[%clk 0:00:11]}  Qxg8 {[%clk 0:00:16]} 0-1


[Site "https://www.chess.com"]

[Event "Titled Tuesday Blitz May 23 Early 2023"]
[White "Ordekalog"]
[Black "Sjugirov, Sanan"]
[BlackFideId "4189302"]
[WhiteElo "2493"]
[BlackElo "2569"]
[Result "0-1"]
[Round "01"]
[TimeControl "180+2"]
[Date "2023.05.23"]
[WhiteClock "0:00:00"]
[BlackClock "0:00:08"]

1. e4 {[%clk 0:02:57]}  c5 {[%clk 0:02:59]} 2. d3 {[%clk 0:02:57]}  Nc6 {[%clk 0:02:58]} 3. g3 {[%clk 0:02:56]}  g6 {[%clk 0:02:57]} 4. Bg2 {[%clk 0:02:56]}  Bg7 {[%clk 0:02:58]} 5. f4 {[%clk 0:02:55]}  d6 {[%clk 0:02:57]} 6. Nf3 {[%clk 0:02:54]}  Nf6 {[%clk 0:02:57]} 7. O-O {[%clk 0:02:54]}  O-O {[%clk 0:02:57]} 8. c3 {[%clk 0:02:54]}  Rb8 {[%clk 0:02:55]} 9. a4 {[%clk 0:02:53]}  b6 {[%clk 0:02:54]} 10. Qe2 {[%clk 0:02:52]}  Ba6 {[%clk 0:02:51]} 11. Na3 {[%clk 0:02:50]}  Nd7 {[%clk 0:02:48]} 12. Nb5 {[%clk 0:02:47]}  Bb7 {[%clk 0:02:48]} 13. Bd2 {[%clk 0:02:41]}  a6 {[%clk 0:02:47]} 14. Na3 {[%clk 0:02:41]}  Rc8 {[%clk 0:02:42]} 15. Rae1 {[%clk 0:02:38]}  e6 {[%clk 0:02:26]} 16. Nc2 {[%clk 0:02:31]}  b5 {[%clk 0:02:16]} 17. axb5 {[%clk 0:02:31]}  axb5 {[%clk 0:02:17]} 18. e5 {[%clk 0:02:26]}  dxe5 {[%clk 0:02:15]} 19. Nxe5 {[%clk 0:02:24]}  Ndxe5 {[%clk 0:02:12]} 20. fxe5 {[%clk 0:02:24]}  Qc7 {[%clk 0:02:12]} 21. Bf4 {[%clk 0:02:02]}  b4 {[%clk 0:01:58]} 22. h4 {[%clk 0:01:55]}  bxc3 {[%clk 0:01:58]} 23. bxc3 {[%clk 0:01:54]}  Ne7 {[%clk 0:01:53]} 24. Bxb7 {[%clk 0:01:49]}  Qxb7 {[%clk 0:01:54]} 25. Ne3 {[%clk 0:01:49]}  Nd5 {[%clk 0:01:39]} 26. Nxd5 {[%clk 0:01:38]}  Qxd5 {[%clk 0:01:40]} 27. h5 {[%clk 0:01:37]}  Rcd8 {[%clk 0:01:35]} 28. Rf3 {[%clk 0:01:36]}  Rd7 {[%clk 0:01:25]} 29. Ref1 {[%clk 0:01:21]}  Ra8 {[%clk 0:01:19]} 30. c4 {[%clk 0:01:03]}  Qd4+ {[%clk 0:01:11]} 31. Kg2 {[%clk 0:01:03]}  Rb7 {[%clk 0:01:09]} 32. R1f2 {[%clk 0:00:54]}  Rab8 {[%clk 0:01:09]} 33. hxg6 {[%clk 0:00:32]}  hxg6 {[%clk 0:01:08]} 34. Qe3 {[%clk 0:00:27]}  Qxe3 {[%clk 0:00:40]} 35. Rxe3 {[%clk 0:00:27]}  Rd7 {[%clk 0:00:37]} 36. Bg5 {[%clk 0:00:26]}  Rb3 {[%clk 0:00:35]} 37. Rff3 {[%clk 0:00:24]}  Rb2+ {[%clk 0:00:32]} 38. Kh3 {[%clk 0:00:24]}  Rd2 {[%clk 0:00:23]} 39. g4 {[%clk 0:00:23]}  Rb7 {[%clk 0:00:13]} 40. Re4 {[%clk 0:00:17]}  Ra2 {[%clk 0:00:13]} 41. Bf6 {[%clk 0:00:14]}  Rbb2 {[%clk 0:00:06]} 42. Bxg7 {[%clk 0:00:13]}  Kxg7 {[%clk 0:00:07]} 43. g5 {[%clk 0:00:08]}  Rh2+ {[%clk 0:00:05]} 44. Kg3 {[%clk 0:00:09]}  Rag2+ {[%clk 0:00:05]} 45. Kf4 {[%clk 0:00:09]}  Rh4+ {[%clk 0:00:05]} 46. Ke3 {[%clk 0:00:09]}  Rxe4+ {[%clk 0:00:05]} 47. Kxe4 {[%clk 0:00:07]}  Rxg5 {[%clk 0:00:06]} 48. Rf1 {[%clk 0:00:06]}  Rg4+ {[%clk 0:00:06]} 49. Ke3 {[%clk 0:00:06]}  Rg3+ {[%clk 0:00:07]} 50. Ke4 {[%clk 0:00:06]}  Rg2 {[%clk 0:00:07]} 51. Ra1 {[%clk 0:00:06]}  Re2+ {[%clk 0:00:08]} 52. Kf4 {[%clk 0:00:06]}  g5+ {[%clk 0:00:06]} 53. Kxg5 {[%clk 0:00:04]}  Rxe5+ {[%clk 0:00:07]} 54. Kf4 {[%clk 0:00:05]}  Rf5+ {[%clk 0:00:06]} 55. Ke4 {[%clk 0:00:06]}  Rh5 {[%clk 0:00:07]} 56. Rg1+ {[%clk 0:00:05]}  Kf6 {[%clk 0:00:07]} 57. Rg8 {[%clk 0:00:05]}  Rh4+ {[%clk 0:00:07]} 58. Ke3 {[%clk 0:00:05]}  Ke5 {[%clk 0:00:07]} 59. Rg5+ {[%clk 0:00:05]}  f5 {[%clk 0:00:07]} 60. Rg8 {[%clk 0:00:04]}  Rh3+ {[%clk 0:00:07]} 61. Ke2 {[%clk 0:00:04]}  Kf4 {[%clk 0:00:07]} 62. Rc8 {[%clk 0:00:04]}  Rh2+ {[%clk 0:00:07]} 63. Kd1 {[%clk 0:00:04]}  Ke3 {[%clk 0:00:07]} 64. Rxc5 {[%clk 0:00:03]}  Kxd3 {[%clk 0:00:08]} 65. Ke1 {[%clk 0:00:02]}  Kd4 {[%clk 0:00:05]} 66. Rc6 {[%clk 0:00:02]}  e5 {[%clk 0:00:05]} 67. c5 {[%clk 0:00:03]}  Ke3 {[%clk 0:00:05]} 68. Kf1 {[%clk 0:00:02]}  f4 {[%clk 0:00:05]} 69. Re6 {[%clk 0:00:02]}  e4 {[%clk 0:00:05]} 70. c6 {[%clk 0:00:03]}  f3 {[%clk 0:00:05]} 71. Kg1 {[%clk 0:00:03]}  Rg2+ {[%clk 0:00:05]} 72. Kh1 {[%clk 0:00:03]}  Rc2 {[%clk 0:00:06]} 73. Rh6 {[%clk 0:00:02]}  Rc1+ {[%clk 0:00:06]} 74. Kh2 {[%clk 0:00:02]}  f2 {[%clk 0:00:07]} 75. Rf6 {[%clk 0:00:01]}  f1=Q {[%clk 0:00:07]} 76. Rxf1 {[%clk 0:00:00]}  Rxf1 {[%clk 0:00:08]} 0-1


[Site "https://www.chess.com"]

[Event "Titled Tuesday Blitz May 23 Early 2023"]
[White "Ljukin, Sergei"]
[Black "Durarbayli, Vasif"]
[WhiteFideId "14102200"]
[BlackFideId "13402935"]
[WhiteElo "2312"]
[BlackElo "2551"]
[Result "0-1"]
[Round "01"]
[TimeControl "180+2"]
[Date "2023.05.23"]
[WhiteClock "0:00:38"]
[BlackClock "0:00:30"]

1. e4 {[%clk 0:02:59]}  c5 {[%clk 0:02:58]} 2. Nf3 {[%clk 0:02:59]}  d6 {[%clk 0:02:59]} 3. d4 {[%clk 0:02:59]}  cxd4 {[%clk 0:03:00]} 4. Nxd4 {[%clk 0:02:59]}  Nf6 {[%clk 0:03:01]} 5. Nc3 {[%clk 0:02:59]}  Nc6 {[%clk 0:03:01]} 6. Bc4 {[%clk 0:02:58]}  e6 {[%clk 0:03:00]} 7. Be3 {[%clk 0:02:58]}  a6 {[%clk 0:03:00]} 8. Qe2 {[%clk 0:02:57]}  Qc7 {[%clk 0:03:00]} 9. Bb3 {[%clk 0:02:57]}  Na5 {[%clk 0:02:59]} 10. O-O-O {[%clk 0:02:54]}  b5 {[%clk 0:02:56]} 11. f3 {[%clk 0:02:50]}  Be7 {[%clk 0:02:52]} 12. Kb1 {[%clk 0:02:49]}  Rb8 {[%clk 0:02:29]} 13. g4 {[%clk 0:02:47]}  Nc4 {[%clk 0:02:19]} 14. h4 {[%clk 0:02:35]}  Nd7 {[%clk 0:02:14]} 15. g5 {[%clk 0:02:17]}  Ndb6 {[%clk 0:02:14]} 16. Bc1 {[%clk 0:02:15]}  Bd7 {[%clk 0:02:10]} 17. h5 {[%clk 0:02:13]}  b4 {[%clk 0:02:10]} 18. Nd5 {[%clk 0:02:07]}  exd5 {[%clk 0:02:06]} 19. exd5 {[%clk 0:02:07]}  Kd8 {[%clk 0:01:52]} 20. g6 {[%clk 0:01:58]}  fxg6 {[%clk 0:01:45]} 21. hxg6 {[%clk 0:01:56]}  h6 {[%clk 0:01:46]} 22. Ne6+ {[%clk 0:01:48]}  Bxe6 {[%clk 0:01:46]} 23. dxe6 {[%clk 0:01:48]}  a5 {[%clk 0:01:35]} 24. Rd4 {[%clk 0:01:43]}  Rc8 {[%clk 0:01:30]} 25. Rhd1 {[%clk 0:01:40]}  a4 {[%clk 0:01:27]} 26. Bxc4 {[%clk 0:01:40]}  Nxc4 {[%clk 0:01:28]} 27. Bf4 {[%clk 0:01:38]}  Rf8 {[%clk 0:01:09]} 28. Bg3 {[%clk 0:01:31]}  Rf5 {[%clk 0:01:03]} 29. Qd3 {[%clk 0:01:26]}  Rc5 {[%clk 0:00:59]} 30. Qe4 {[%clk 0:01:13]}  Ke8 {[%clk 0:00:50]} 31. Qf4 {[%clk 0:01:10]}  Ne5 {[%clk 0:00:51]} 32. Bh4 {[%clk 0:00:46]}  Bxh4 {[%clk 0:00:41]} 33. Qxh4 {[%clk 0:00:46]}  Rxc2 {[%clk 0:00:40]} 34. Qf4 {[%clk 0:00:46]}  a3 {[%clk 0:00:30]} 35. Rxd6 {[%clk 0:00:42]}  Rxb2+ {[%clk 0:00:30]} 36. Ka1 {[%clk 0:00:38]}  Rxa2+ {[%clk 0:00:30]} 0-1


[Site "https://www.chess.com"]

[Event "Titled Tuesday Blitz May 23 Early 2023"]
[White "Grigoriants, Sergey"]
[Black "Eynullayev, Atilla"]
[WhiteFideId "4130804"]
[BlackFideId "13413570"]
[WhiteElo "2502"]
[BlackElo "2181"]
[Result "1-0"]
[Round "01"]
[TimeControl "180+2"]
[Date "2023.05.23"]
[WhiteClock "0:01:05"]
[BlackClock "0:01:04"]

1. d4 {[%clk 0:02:55]}  Nf6 {[%clk 0:02:59]} 2. c4 {[%clk 0:02:54]}  e6 {[%clk 0:03:00]} 3. Nf3 {[%clk 0:02:53]}  d5 {[%clk 0:03:00]} 4. Nc3 {[%clk 0:02:53]}  Nbd7 {[%clk 0:03:00]} 5. Bf4 {[%clk 0:02:47]}  Bb4 {[%clk 0:03:00]} 6. e3 {[%clk 0:02:44]}  c5 {[%clk 0:03:00]} 7. Nd2 {[%clk 0:02:34]}  Qa5 {[%clk 0:02:53]} 8. Qc2 {[%clk 0:02:23]}  cxd4 {[%clk 0:02:51]} 9. exd4 {[%clk 0:02:22]}  O-O {[%clk 0:02:51]} 10. Bd3 {[%clk 0:02:11]}  b6 {[%clk 0:02:39]} 11. O-O {[%clk 0:02:09]}  Ba6 {[%clk 0:01:59]} 12. Nb3 {[%clk 0:02:04]}  dxc4 {[%clk 0:01:59]} 13. Bxh7+ {[%clk 0:01:33]}  Nxh7 {[%clk 0:01:58]} 14. Nxa5 {[%clk 0:01:34]}  Bxa5 {[%clk 0:01:57]} 15. Rfe1 {[%clk 0:01:28]}  Rfd8 {[%clk 0:01:09]} 16. Bc7 {[%clk 0:01:15]}  Rdc8 {[%clk 0:01:04]} 17. Be5 {[%clk 0:01:15]}  Nhf6 {[%clk 0:01:04]} 18. Re3 {[%clk 0:01:14]}  Bb7 {[%clk 0:01:04]} 19. Rg3 {[%clk 0:01:05]}  Bb4 {[%clk 0:01:04]} 1-0


[Site "https://www.chess.com"]

[Event "Titled Tuesday Blitz May 23 Early 2023"]
[White "Pasti, Aron"]
[Black "Drygalov, Sergey"]
[WhiteFideId "785857"]
[BlackFideId "24171743"]
[WhiteElo "2173"]
[BlackElo "2533"]
[Result "0-1"]
[Round "01"]
[TimeControl "180+2"]
[Date "2023.05.23"]
[WhiteClock "0:00:19"]
[BlackClock "0:01:20"]

1. e4 {[%clk 0:02:59]}  c5 {[%clk 0:02:59]} 2. d4 {[%clk 0:02:58]}  cxd4 {[%clk 0:02:59]} 3. c3 {[%clk 0:02:59]}  dxc3 {[%clk 0:02:53]} 4. Nxc3 {[%clk 0:03:00]}  Nc6 {[%clk 0:02:53]} 5. Nf3 {[%clk 0:03:00]}  e6 {[%clk 0:02:53]} 6. Bc4 {[%clk 0:03:00]}  d6 {[%clk 0:02:54]} 7. O-O {[%clk 0:03:01]}  Nf6 {[%clk 0:02:55]} 8. Qe2 {[%clk 0:03:01]}  Be7 {[%clk 0:02:54]} 9. Rd1 {[%clk 0:03:01]}  e5 {[%clk 0:02:55]} 10. Be3 {[%clk 0:02:58]}  O-O {[%clk 0:02:51]} 11. b4 {[%clk 0:02:55]}  a6 {[%clk 0:02:44]} 12. a4 {[%clk 0:02:55]}  Bg4 {[%clk 0:02:41]} 13. Rab1 {[%clk 0:02:42]}  Rc8 {[%clk 0:02:38]} 14. h3 {[%clk 0:02:41]}  Bh5 {[%clk 0:02:38]} 15. b5 {[%clk 0:02:37]}  Na5 {[%clk 0:02:34]} 16. bxa6 {[%clk 0:02:15]}  Bxf3 {[%clk 0:01:55]} 17. gxf3 {[%clk 0:02:14]}  Rxc4 {[%clk 0:01:55]} 18. Bb6 {[%clk 0:02:12]}  Qc8 {[%clk 0:01:55]} 19. Bxa5 {[%clk 0:02:05]}  bxa6 {[%clk 0:01:54]} 20. Nd5 {[%clk 0:01:51]}  Nxd5 {[%clk 0:01:51]} 21. Rxd5 {[%clk 0:01:52]}  Rxa4 {[%clk 0:01:50]} 22. Bb4 {[%clk 0:01:48]}  Qb7 {[%clk 0:01:36]} 23. Qb2 {[%clk 0:01:02]}  Rb8 {[%clk 0:01:28]} 24. Bc3 {[%clk 0:00:36]}  Qxb2 {[%clk 0:01:28]} 25. Rxb2 {[%clk 0:00:36]}  Rxb2 {[%clk 0:01:28]} 26. Bxb2 {[%clk 0:00:37]}  f6 {[%clk 0:01:29]} 27. Kf1 {[%clk 0:00:37]}  Kf7 {[%clk 0:01:29]} 28. Ke2 {[%clk 0:00:37]}  Ra2 {[%clk 0:01:24]} 29. Rd2 {[%clk 0:00:37]}  d5 {[%clk 0:01:24]} 30. exd5 {[%clk 0:00:36]}  Bb4 {[%clk 0:01:20]} 31. Rc2 {[%clk 0:00:36]}  Ba3 {[%clk 0:01:20]} 32. Rc7+ {[%clk 0:00:31]}  Kg6 {[%clk 0:01:20]} 33. Ra7 {[%clk 0:00:20]}  Rxb2+ {[%clk 0:01:20]} 34. Ke1 {[%clk 0:00:21]}  Bb4+ {[%clk 0:01:19]} 35. Kf1 {[%clk 0:00:20]}  Bc5 {[%clk 0:01:20]} 36. Rxa6 {[%clk 0:00:20]}  Rxf2+ {[%clk 0:01:20]} 37. Ke1 {[%clk 0:00:19]}  Rxf3 {[%clk 0:01:20]} 0-1


[Site "https://www.chess.com"]

[Event "Titled Tuesday Blitz May 23 Early 2023"]
[White "Fridman, Daniel"]
[Black "Barbot, Pierre"]
[WhiteFideId "11600454"]
[BlackFideId "663727"]
[WhiteElo "2525"]
[BlackElo "2431"]
[Result "1-0"]
[Round "01"]
[TimeControl "180+2"]
[Date "2023.05.23"]
[WhiteClock "0:02:15"]
[BlackClock "0:00:55"]

1. d4 {[%clk 0:02:59]}  Nf6 {[%clk 0:02:59]} 2. Nf3 {[%clk 0:02:58]}  d5 {[%clk 0:02:58]} 3. c4 {[%clk 0:02:57]}  g6 {[%clk 0:02:57]} 4. cxd5 {[%clk 0:02:57]}  Nxd5 {[%clk 0:02:57]} 5. e4 {[%clk 0:02:56]}  Nb6 {[%clk 0:02:49]} 6. Nc3 {[%clk 0:02:57]}  Bg7 {[%clk 0:02:34]} 7. h3 {[%clk 0:02:57]}  O-O {[%clk 0:02:33]} 8. Be3 {[%clk 0:02:57]}  c5 {[%clk 0:02:21]} 9. dxc5 {[%clk 0:02:46]}  N6d7 {[%clk 0:02:19]} 10. Qd2 {[%clk 0:02:40]}  Qa5 {[%clk 0:02:13]} 11. Nd5 {[%clk 0:02:28]}  Qxd2+ {[%clk 0:02:08]} 12. Nxd2 {[%clk 0:02:29]}  Nc6 {[%clk 0:01:48]} 13. Nc4 {[%clk 0:02:28]}  Nde5 {[%clk 0:01:28]} 14. Nxe5 {[%clk 0:02:22]}  Bxe5 {[%clk 0:01:29]} 15. O-O-O {[%clk 0:02:22]}  b6 {[%clk 0:01:10]} 16. Bb5 {[%clk 0:02:15]}  Bb7 {[%clk 0:01:02]} 17. Bxc6 {[%clk 0:02:14]}  Bxc6 {[%clk 0:00:58]} 18. Nxe7+ {[%clk 0:02:15]}  Kh8 {[%clk 0:00:58]} 19. Nxc6 {[%clk 0:02:15]}  Rac8 {[%clk 0:00:55]} 20. Nxe5 {[%clk 0:02:15]} 1-0


[Site "https://www.chess.com"]

[Event "Titled Tuesday Blitz May 23 Early 2023"]
[White "Przybylski, Wojciech"]
[Black "Hansen, Eric"]
[WhiteFideId "1117599"]
[BlackFideId "2606771"]
[WhiteElo "2222"]
[BlackElo "2561"]
[Result "0-1"]
[Round "01"]
[TimeControl "180+2"]
[Date "2023.05.23"]
[WhiteClock "0:00:08"]
[BlackClock "0:00:14"]

1. e4 {[%clk 0:02:56]}  c6 {[%clk 0:02:59]} 2. d4 {[%clk 0:02:54]}  d6 {[%clk 0:03:00]} 3. Nc3 {[%clk 0:02:50]}  e5 {[%clk 0:02:46]} 4. Nf3 {[%clk 0:02:48]}  Nd7 {[%clk 0:02:45]} 5. Bc4 {[%clk 0:02:41]}  Be7 {[%clk 0:02:43]} 6. Ng5 {[%clk 0:02:32]}  Bxg5 {[%clk 0:02:31]} 7. Qh5 {[%clk 0:02:31]}  Qe7 {[%clk 0:02:25]} 8. Bxg5 {[%clk 0:02:26]}  Ngf6 {[%clk 0:02:24]} 9. Qd1 {[%clk 0:02:20]}  h6 {[%clk 0:02:23]} 10. Bh4 {[%clk 0:02:16]}  g5 {[%clk 0:02:17]} 11. Bg3 {[%clk 0:02:16]}  b5 {[%clk 0:02:18]} 12. dxe5 {[%clk 0:02:03]}  dxe5 {[%clk 0:02:15]} 13. Bd3 {[%clk 0:02:01]}  Nc5 {[%clk 0:02:13]} 14. a3 {[%clk 0:01:53]}  a5 {[%clk 0:02:06]} 15. O-O {[%clk 0:01:51]}  h5 {[%clk 0:02:02]} 16. f3 {[%clk 0:01:49]}  h4 {[%clk 0:01:51]} 17. Bf2 {[%clk 0:01:48]}  Nh5 {[%clk 0:01:51]} 18. b4 {[%clk 0:01:25]}  axb4 {[%clk 0:01:40]} 19. axb4 {[%clk 0:01:23]}  Rxa1 {[%clk 0:01:41]} 20. Qxa1 {[%clk 0:01:21]}  Ne6 {[%clk 0:01:18]} 21. Ne2 {[%clk 0:01:18]}  f6 {[%clk 0:01:14]} 22. c4 {[%clk 0:01:13]}  bxc4 {[%clk 0:01:15]} 23. Bxc4 {[%clk 0:01:12]}  Kf8 {[%clk 0:01:01]} 24. Rd1 {[%clk 0:00:50]}  Kg7 {[%clk 0:01:00]} 25. Bxe6 {[%clk 0:00:20]}  Bxe6 {[%clk 0:00:56]} 26. Bc5 {[%clk 0:00:19]}  Qb7 {[%clk 0:00:53]} 27. Rd6 {[%clk 0:00:19]}  Bc4 {[%clk 0:00:53]} 28. Nc3 {[%clk 0:00:18]}  Kg6 {[%clk 0:00:42]} 29. Qc1 {[%clk 0:00:10]}  Nf4 {[%clk 0:00:38]} 30. Qd2 {[%clk 0:00:07]}  Ra8 {[%clk 0:00:30]} 31. g3 {[%clk 0:00:08]}  Ra1+ {[%clk 0:00:30]} 32. Nd1 {[%clk 0:00:06]}  Bb3 {[%clk 0:00:14]} 33. Qe1 {[%clk 0:00:05]}  hxg3 {[%clk 0:00:09]} 34. hxg3 {[%clk 0:00:05]}  Ne6 {[%clk 0:00:09]} 35. Rd2 {[%clk 0:00:05]}  Nxc5 {[%clk 0:00:06]} 36. bxc5 {[%clk 0:00:05]}  Qa7 {[%clk 0:00:06]} 37. Kg2 {[%clk 0:00:04]}  Qa4 {[%clk 0:00:05]} 38. Qe2 {[%clk 0:00:03]}  Rxd1 {[%clk 0:00:05]} 39. Rxd1 {[%clk 0:00:03]}  Bxd1 {[%clk 0:00:05]} 40. Qd3 {[%clk 0:00:04]}  Qc2+ {[%clk 0:00:06]} 41. Qxc2 {[%clk 0:00:04]}  Bxc2 {[%clk 0:00:07]} 42. Kf2 {[%clk 0:00:03]}  g4 {[%clk 0:00:06]} 43. Ke3 {[%clk 0:00:03]}  gxf3 {[%clk 0:00:06]} 44. Kxf3 {[%clk 0:00:03]}  Kg5 {[%clk 0:00:06]} 45. Ke3 {[%clk 0:00:04]}  Kg4 {[%clk 0:00:07]} 46. Kd2 {[%clk 0:00:04]}  Bxe4 {[%clk 0:00:08]} 47. Ke3 {[%clk 0:00:04]}  Bd5 {[%clk 0:00:08]} 48. Kd3 {[%clk 0:00:04]}  f5 {[%clk 0:00:09]} 49. Ke3 {[%clk 0:00:04]}  Kxg3 {[%clk 0:00:10]} 50. Kd3 {[%clk 0:00:05]}  Kg2 {[%clk 0:00:10]} 51. Ke3 {[%clk 0:00:05]}  f4+ {[%clk 0:00:11]} 52. Kd3 {[%clk 0:00:06]}  f3 {[%clk 0:00:12]} 53. Ke3 {[%clk 0:00:06]}  f2 {[%clk 0:00:13]} 54. Kd2 {[%clk 0:00:07]}  f1=Q {[%clk 0:00:13]} 55. Kc3 {[%clk 0:00:07]}  Qf3+ {[%clk 0:00:13]} 56. Kb4 {[%clk 0:00:07]}  Qb3+ {[%clk 0:00:13]} 57. Ka5 {[%clk 0:00:08]}  Qb5# {[%clk 0:00:14]} 0-1


[Site "https://www.chess.com"]